Body,Body name,Date,Transaction number,Amount,Supplier name,Supplier ID,Expense area,Fund type,Expense type
http://statistics.data.gov.uk/id/local-authority/29UN,Thanet District Council,06/11/2012,324852,604.95,Adecco Uk Ltd,ADE005,Director of Corporate Services and Transformation,Revenue,Supplies And Services
http://statistics.data.gov.uk/id/local-authority/29UN,Thanet District Council,06/11/2012,324413,500.90,Bishop Sports & Leisure Ltd,BIS003,Director of Community Services ,Revenue,Supplies And Services
http://statistics.data.gov.uk/id/local-authority/29UN,Thanet District Council,06/11/2012,324679,686.66,Casement Signs And Traffic,CAS001,Director of Operational Services,Revenue,Supplies And Services
http://statistics.data.gov.uk/id/local-authority/29UN,Thanet District Council,06/11/2012,324358,1500.00,Champions (Uk) Plc,CHA062,Director of Community Services ,Revenue,Supplies And Services
http://statistics.data.gov.uk/id/local-authority/29UN,Thanet District Council,06/11/2012,324359,1500.00,Champions (Uk) Plc,CHA062,Director of Community Services ,Revenue,Supplies And Services
http://statistics.data.gov.uk/id/local-authority/29UN,Thanet District Council,06/11/2012,322681,25406.72,Civica Uk Ltd,CIV003,Director of Corporate Services and Transformation,Revenue,Supplies And Services
http://statistics.data.gov.uk/id/local-authority/29UN,Thanet District Council,06/11/2012,325314,66843.43,D C L G,DCL002,Director of Corporate Services and Transformation,Balance Sheet,Reserves
http://statistics.data.gov.uk/id/local-authority/29UN,Thanet District Council,06/11/2012,324100,3090.00,Daedalus Environmental Ltd,DAE001,Director of Community Services ,Revenue,Supplies And Services
http://statistics.data.gov.uk/id/local-authority/29UN,Thanet District Council,06/11/2012,324651,1500.00,Dawsonrentals Sweepers,DAW003,Director of Operational Services,Revenue,Transport Related Expenditure
http://statistics.data.gov.uk/id/local-authority/29UN,Thanet District Council,06/11/2012,324697,444.96,E Saunders Margate Ltd,SAU001,Director of Operational Services,Revenue,Premises Related Expenditure
http://statistics.data.gov.uk/id/local-authority/29UN,Thanet District Council,06/11/2012,324650,495.00,East Kent Radiators,EKR002,Director of Operational Services,Revenue,Premises Related Expenditure
http://statistics.data.gov.uk/id/local-authority/29UN,Thanet District Council,06/11/2012,324861,288646.00,Facultatieve Technologies,FAC003,Director of Corporate Services and Transformation,Balance Sheet,Long Term Assets
http://statistics.data.gov.uk/id/local-authority/29UN,Thanet District Council,06/11/2012,324677,4080.00,Groundwork Kent & Medway,GRO015,Director of Operational Services,Revenue,Supplies And Services
http://statistics.data.gov.uk/id/local-authority/29UN,Thanet District Council,06/11/2012,325302,545.00,H M Courts & Tribunal Service,HMC003,Director of Community Services ,Revenue,Supplies And Services
http://statistics.data.gov.uk/id/local-authority/29UN,Thanet District Council,06/11/2012,324387,875.00,Hkd Ltd,HKD001,Director of Community Services ,Revenue,Supplies And Services
http://statistics.data.gov.uk/id/local-authority/29UN,Thanet District Council,06/11/2012,324701,468.50,Holbrook Revell Electrical Ltd,HOL015,Director of Operational Services,Revenue,Premises Related Expenditure
http://statistics.data.gov.uk/id/local-authority/29UN,Thanet District Council,06/11/2012,324319,5599.82,Hr Go Recruitment Ltd,HRG002,Director of Operational Services,Revenue,Employees
http://statistics.data.gov.uk/id/local-authority/29UN,Thanet District Council,06/11/2012,324443,542.50,Jay Holloway,HOL025,Director of Community Services ,Revenue,Supplies And Services
http://statistics.data.gov.uk/id/local-authority/29UN,Thanet District Council,06/11/2012,324847,27773.93,Kent County Council,KCC002,Director of Community Services ,Revenue,Supplies And Services
http://statistics.data.gov.uk/id/local-authority/29UN,Thanet District Council,06/11/2012,324628,903.09,L W Burt & Son Ltd,BUR027,Director of Operational Services,Revenue,Premises Related Expenditure
http://statistics.data.gov.uk/id/local-authority/29UN,Thanet District Council,06/11/2012,324616,81.92,Mears Ltd,MEA003,Director of Community Services ,Revenue,Premises Related Expenditure
http://statistics.data.gov.uk/id/local-authority/29UN,Thanet District Council,06/11/2012,324616,2312.01,Mears Ltd,MEA003,Director of Operational Services,Revenue,Premises Related Expenditure
http://statistics.data.gov.uk/id/local-authority/29UN,Thanet District Council,06/11/2012,324619,1173.66,Mears Ltd,MEA003,Director of Operational Services,Revenue,Premises Related Expenditure
http://statistics.data.gov.uk/id/local-authority/29UN,Thanet District Council,06/11/2012,324620,662.71,Mears Ltd,MEA003,Director of Community Services ,Revenue,Premises Related Expenditure
http://statistics.data.gov.uk/id/local-authority/29UN,Thanet District Council,06/11/2012,324620,6013.37,Mears Ltd,MEA003,Director of Operational Services,Revenue,Premises Related Expenditure
http://statistics.data.gov.uk/id/local-authority/29UN,Thanet District Council,06/11/2012,324621,428.37,Mears Ltd,MEA003,Director of Community Services ,Revenue,Premises Related Expenditure
http://statistics.data.gov.uk/id/local-authority/29UN,Thanet District Council,06/11/2012,324621,2356.89,Mears Ltd,MEA003,Director of Operational Services,Revenue,Premises Related Expenditure
http://statistics.data.gov.uk/id/local-authority/29UN,Thanet District Council,06/11/2012,324622,407.35,Mears Ltd,MEA003,Director of Community Services ,Revenue,Premises Related Expenditure
http://statistics.data.gov.uk/id/local-authority/29UN,Thanet District Council,06/11/2012,324622,2369.81,Mears Ltd,MEA003,Director of Operational Services,Revenue,Premises Related Expenditure
http://statistics.data.gov.uk/id/local-authority/29UN,Thanet District Council,06/11/2012,324624,4495.42,Mears Ltd,MEA003,Director of Operational Services,Revenue,Premises Related Expenditure
http://statistics.data.gov.uk/id/local-authority/29UN,Thanet District Council,06/11/2012,324624,-0.01,Mears Ltd,MEA003,Director of Operational Services,Revenue,Supplies And Services
http://statistics.data.gov.uk/id/local-authority/29UN,Thanet District Council,06/11/2012,324870,1301.50,Michael Page Finance,PAG008,Director of Corporate Services and Transformation,Revenue,Supplies And Services
http://statistics.data.gov.uk/id/local-authority/29UN,Thanet District Council,06/11/2012,324879,542.23,O2 (Uk) Ltd,O2U001,Director of Operational Services,Revenue,Supplies And Services
http://statistics.data.gov.uk/id/local-authority/29UN,Thanet District Council,06/11/2012,324782,793.54,Ocs Group Uk Ltd T/A Fountains,OCS005,Director of Operational Services,Revenue,Premises Related Expenditure
http://statistics.data.gov.uk/id/local-authority/29UN,Thanet District Council,06/11/2012,324790,16430.23,Ocs Group Uk Ltd T/A Fountains,OCS005,Director of Corporate Services and Transformation,Balance Sheet,Current Assets
http://statistics.data.gov.uk/id/local-authority/29UN,Thanet District Council,06/11/2012,324700,697.93,Page Plan Copiers Limited,PAG002,Director of Community Services ,Revenue,Supplies And Services
http://statistics.data.gov.uk/id/local-authority/29UN,Thanet District Council,06/11/2012,324645,9434.29,Proact Uk Ltd,PRO028,East Kent Shared Services,Revenue,Supplies And Services
http://statistics.data.gov.uk/id/local-authority/29UN,Thanet District Council,06/11/2012,324412,1064.20,Probrand Ltd,PRO012,Director of Corporate Services and Transformation,Revenue,Supplies And Services
http://statistics.data.gov.uk/id/local-authority/29UN,Thanet District Council,06/11/2012,325290,595.00,R Cannon,CAN007,Director of Operational Services,Revenue,Supplies And Services
http://statistics.data.gov.uk/id/local-authority/29UN,Thanet District Council,06/11/2012,325292,420.00,R Cannon,CAN007,Director of Operational Services,Revenue,Supplies And Services
http://statistics.data.gov.uk/id/local-authority/29UN,Thanet District Council,06/11/2012,324238,1545.00,Radius Regeneration Ltd,RAD007,Director of Community Services ,Revenue,Supplies And Services
http://statistics.data.gov.uk/id/local-authority/29UN,Thanet District Council,06/11/2012,324868,2911.03,Ramsay Project Management Ltd,RAM037,Director of Corporate Services and Transformation,Balance Sheet,Long Term Assets
http://statistics.data.gov.uk/id/local-authority/29UN,Thanet District Council,06/11/2012,325068,3182.00,Ramsay Project Management Ltd,RAM037,Director of Corporate Services and Transformation,Balance Sheet,Long Term Assets
http://statistics.data.gov.uk/id/local-authority/29UN,Thanet District Council,06/11/2012,324772,2488.50,Randomstorm Ltd,RAN005,East Kent Shared Services,Revenue,Supplies And Services
http://statistics.data.gov.uk/id/local-authority/29UN,Thanet District Council,06/11/2012,324863,645.00,Rics,RIC007,Director of Operational Services,Revenue,Supplies And Services
http://statistics.data.gov.uk/id/local-authority/29UN,Thanet District Council,06/11/2012,323606,2277.48,Royal Mail,ROY004,Director of Corporate Services and Transformation,Revenue,Supplies And Services
http://statistics.data.gov.uk/id/local-authority/29UN,Thanet District Council,06/11/2012,324440,1055.00,S P Weight,WEI002,Director of Operational Services,Revenue,Premises Related Expenditure
http://statistics.data.gov.uk/id/local-authority/29UN,Thanet District Council,06/11/2012,324800,431.60,Screwfix Direct Ltd,SCR001,Director of Operational Services,Revenue,Premises Related Expenditure
http://statistics.data.gov.uk/id/local-authority/29UN,Thanet District Council,06/11/2012,325207,811.60,Southern Water,SWA001,Director of Operational Services,Revenue,Premises Related Expenditure
http://statistics.data.gov.uk/id/local-authority/29UN,Thanet District Council,06/11/2012,325209,872.52,Southern Water,SWA001,Director of Operational Services,Revenue,Premises Related Expenditure
http://statistics.data.gov.uk/id/local-authority/29UN,Thanet District Council,06/11/2012,324850,895.00,Ssl247 Ltd,SSL001,East Kent Shared Services,Revenue,Supplies And Services
http://statistics.data.gov.uk/id/local-authority/29UN,Thanet District Council,06/11/2012,324105,5150.00,Stephen Donald Associates Ltd,SDA001,Director of Community Services ,Revenue,Supplies And Services
http://statistics.data.gov.uk/id/local-authority/29UN,Thanet District Council,06/11/2012,324612,5150.00,Studio Engleback Ltd,STU011,Director of Community Services ,Revenue,Supplies And Services
http://statistics.data.gov.uk/id/local-authority/29UN,Thanet District Council,06/11/2012,324304,535.00,The Marine Safety Centre Limited,MAR002,Director of Operational Services,Revenue,Supplies And Services
http://statistics.data.gov.uk/id/local-authority/29UN,Thanet District Council,06/11/2012,324614,4220.43,Thintech Ltd,THI009,East Kent Shared Services,Revenue,Supplies And Services
http://statistics.data.gov.uk/id/local-authority/29UN,Thanet District Council,06/11/2012,324812,92835.41,Thomas Sinden Ltd,SIN009,Director of Corporate Services and Transformation,Balance Sheet,Long Term Assets
http://statistics.data.gov.uk/id/local-authority/29UN,Thanet District Council,06/11/2012,324222,2060.00,W T Partnership Ltd,WTP002,Director of Community Services ,Revenue,Supplies And Services
http://statistics.data.gov.uk/id/local-authority/29UN,Thanet District Council,06/11/2012,324849,780.00,Watling Tyre Service Ltd,WAT003,Director of Operational Services,Revenue,Transport Related Expenditure
http://statistics.data.gov.uk/id/local-authority/29UN,Thanet District Council,06/11/2012,324396,12000.00,Wyre Marine Services Limited,WYR001,Director of Operational Services,Revenue,Premises Related Expenditure
http://statistics.data.gov.uk/id/local-authority/29UN,Thanet District Council,06/11/2012,324859,2786.00,Zoho Corporation Private Ltd,ZOH001,East Kent Shared Services,Revenue,Supplies And Services
http://statistics.data.gov.uk/id/local-authority/29UN,Thanet District Council,13/11/2012,324364,604.95,Adecco Uk Ltd,ADE005,Director of Corporate Services and Transformation,Revenue,Supplies And Services
http://statistics.data.gov.uk/id/local-authority/29UN,Thanet District Council,13/11/2012,325517,604.95,Adecco Uk Ltd,ADE005,Director of Corporate Services and Transformation,Revenue,Supplies And Services
http://statistics.data.gov.uk/id/local-authority/29UN,Thanet District Council,13/11/2012,325153,701.15,Air Liquide Uk Ltd,AIR013,Director of Corporate Services and Transformation,Revenue,Supplies And Services
http://statistics.data.gov.uk/id/local-authority/29UN,Thanet District Council,13/11/2012,324441,612.20,Albion Fencing Kent Ltd,ALB005,Director of Operational Services,Revenue,Premises Related Expenditure
http://statistics.data.gov.uk/id/local-authority/29UN,Thanet District Council,13/11/2012,325699,7205.00,Bramling Construction Ltd,BRA020,Director of Corporate Services and Transformation,Balance Sheet,Long Term Assets
http://statistics.data.gov.uk/id/local-authority/29UN,Thanet District Council,13/11/2012,325485,1590.00,Bramm,BRA023,Director of Operational Services,Revenue,Premises Related Expenditure
http://statistics.data.gov.uk/id/local-authority/29UN,Thanet District Council,13/11/2012,324306,2714.40,Bridge Security Cctv Ltd,BRI039,Director of Operational Services,Revenue,Supplies And Services
http://statistics.data.gov.uk/id/local-authority/29UN,Thanet District Council,13/11/2012,324447,595.00,Bridge Security Cctv Ltd,BRI039,Director of Operational Services,Revenue,Supplies And Services
http://statistics.data.gov.uk/id/local-authority/29UN,Thanet District Council,13/11/2012,325262,816.00,Bridge Security Cctv Ltd,BRI039,Director of Community Services ,Revenue,Supplies And Services
http://statistics.data.gov.uk/id/local-authority/29UN,Thanet District Council,13/11/2012,325682,1498.20,Bridge Security Cctv Ltd,BRI039,Director of Operational Services,Revenue,Supplies And Services
http://statistics.data.gov.uk/id/local-authority/29UN,Thanet District Council,13/11/2012,325685,2323.92,Bridge Security Cctv Ltd,BRI039,Director of Operational Services,Revenue,Supplies And Services
http://statistics.data.gov.uk/id/local-authority/29UN,Thanet District Council,13/11/2012,325704,-542.88,Bridge Security Cctv Ltd,BRI039,Director of Operational Services,Revenue,Supplies And Services
http://statistics.data.gov.uk/id/local-authority/29UN,Thanet District Council,13/11/2012,324158,1120.00,Campbell Reith Hill Llp,CAM013,Director of Corporate Services and Transformation,Balance Sheet,Long Term Assets
http://statistics.data.gov.uk/id/local-authority/29UN,Thanet District Council,13/11/2012,324632,682.96,Caxtons,CAX005,Director of Operational Services,Revenue,Premises Related Expenditure
http://statistics.data.gov.uk/id/local-authority/29UN,Thanet District Council,13/11/2012,324804,875.00,Civica Uk Ltd,CIV003,East Kent Shared Services,Revenue,Supplies And Services
http://statistics.data.gov.uk/id/local-authority/29UN,Thanet District Council,13/11/2012,324676,1550.00,Clear Skies Software Ltd,CLE004,Director of Operational Services,Revenue,Supplies And Services
http://statistics.data.gov.uk/id/local-authority/29UN,Thanet District Council,13/11/2012,325286,581.10,Colleen Chick,CHI019,Director of Corporate Services and Transformation,Revenue,Supplies And Services
http://statistics.data.gov.uk/id/local-authority/29UN,Thanet District Council,13/11/2012,325560,10288.29,Connoisseur Renovations,CON037,Director of Corporate Services and Transformation,Balance Sheet,Long Term Assets
http://statistics.data.gov.uk/id/local-authority/29UN,Thanet District Council,13/11/2012,325253,1100.00,Criminal Records Bureau,CRI002,Director of Corporate Services and Transformation,Revenue,Supplies And Services
http://statistics.data.gov.uk/id/local-authority/29UN,Thanet District Council,13/11/2012,325149,1725.00,Dawsonrentals Sweepers,DAW003,Director of Operational Services,Revenue,Transport Related Expenditure
http://statistics.data.gov.uk/id/local-authority/29UN,Thanet District Council,13/11/2012,325112,423.42,Dennis Eagle Ltd,DEN005,Director of Operational Services,Revenue,Transport Related Expenditure
http://statistics.data.gov.uk/id/local-authority/29UN,Thanet District Council,13/11/2012,325115,443.44,Dennis Eagle Ltd,DEN005,Director of Operational Services,Revenue,Transport Related Expenditure
http://statistics.data.gov.uk/id/local-authority/29UN,Thanet District Council,13/11/2012,325531,637.00,Direct Bearings & Power Trans Ltd,DIR001,Director of Operational Services,Revenue,Supplies And Services
http://statistics.data.gov.uk/id/local-authority/29UN,Thanet District Council,13/11/2012,325491,18062.57,Dover District Council,DOV001,East Kent Shared Services,Revenue,Supplies And Services
http://statistics.data.gov.uk/id/local-authority/29UN,Thanet District Council,13/11/2012,325521,569.25,Dover District Council,DOV001,Director of Corporate Services and Transformation,Revenue,Supplies And Services
http://statistics.data.gov.uk/id/local-authority/29UN,Thanet District Council,13/11/2012,324814,631.02,E Saunders Margate Ltd,SAU001,Director of Corporate Services and Transformation,Balance Sheet,Current Assets
http://statistics.data.gov.uk/id/local-authority/29UN,Thanet District Council,13/11/2012,325259,549.84,East Kent Components Ltd,EKC006,Director of Operational Services,Revenue,Transport Related Expenditure
http://statistics.data.gov.uk/id/local-authority/29UN,Thanet District Council,13/11/2012,325548,113700.00,East Kent Housing Ltd,EKH002,Director of Community Services ,Revenue,Third Party Payments
http://statistics.data.gov.uk/id/local-authority/29UN,Thanet District Council,13/11/2012,325303,757.69,Edf Energy 1 Ltd,SEE012,Director of Operational Services,Revenue,Premises Related Expenditure
http://statistics.data.gov.uk/id/local-authority/29UN,Thanet District Council,13/11/2012,325337,809.73,Edf Energy 1 Ltd,SEE012,Director of Community Services ,Revenue,Premises Related Expenditure
http://statistics.data.gov.uk/id/local-authority/29UN,Thanet District Council,13/11/2012,325556,3363.59,Electrical Lighting Solutions Ltd,ELE013,Director of Operational Services,Revenue,Premises Related Expenditure
http://statistics.data.gov.uk/id/local-authority/29UN,Thanet District Council,13/11/2012,325559,529.29,Electrical Lighting Solutions Ltd,ELE013,Director of Operational Services,Revenue,Premises Related Expenditure
http://statistics.data.gov.uk/id/local-authority/29UN,Thanet District Council,13/11/2012,325080,847.50,Eyeball Digital Signs,EYE002,Director of Community Services ,Revenue,Supplies And Services
http://statistics.data.gov.uk/id/local-authority/29UN,Thanet District Council,13/11/2012,325700,1041.52,Family Mosaic Housing,FAM001,Director of Corporate Services and Transformation,Balance Sheet,Long Term Assets
http://statistics.data.gov.uk/id/local-authority/29UN,Thanet District Council,13/11/2012,324283,775.00,Ferguson Moriyama Ltd,FER005,East Kent Shared Services,Revenue,Employees
http://statistics.data.gov.uk/id/local-authority/29UN,Thanet District Council,13/11/2012,325492,3144.60,Filcris Ltd,FIL002,Director of Operational Services,Revenue,Premises Related Expenditure
http://statistics.data.gov.uk/id/local-authority/29UN,Thanet District Council,13/11/2012,324147,3500.00,Gardiner & Theobald Llp,GAR020,Director of Corporate Services and Transformation,Balance Sheet,Long Term Assets
http://statistics.data.gov.uk/id/local-authority/29UN,Thanet District Council,13/11/2012,325247,3500.00,Gardiner & Theobald Llp,GAR020,Director of Corporate Services and Transformation,Balance Sheet,Long Term Assets
http://statistics.data.gov.uk/id/local-authority/29UN,Thanet District Council,13/11/2012,324699,550.00,George Mccabe,MCC001,Director of Operational Services,Revenue,Premises Related Expenditure
http://statistics.data.gov.uk/id/local-authority/29UN,Thanet District Council,13/11/2012,324801,588.00,Goddard Hester,GOD003,Director of Community Services ,Revenue,Supplies And Services
http://statistics.data.gov.uk/id/local-authority/29UN,Thanet District Council,13/11/2012,324159,450.00,Guy Hollaway Architects Llp,HOL024,Director of Corporate Services and Transformation,Balance Sheet,Long Term Assets
http://statistics.data.gov.uk/id/local-authority/29UN,Thanet District Council,13/11/2012,324816,1700.00,H B Howards Blinds & Curtains Ltd,HOW015,Director of Operational Services,Revenue,Premises Related Expenditure
http://statistics.data.gov.uk/id/local-authority/29UN,Thanet District Council,13/11/2012,325161,580.00,H E Municipal Engineering Ltd,HEM003,Director of Operational Services,Revenue,Transport Related Expenditure
http://statistics.data.gov.uk/id/local-authority/29UN,Thanet District Council,13/11/2012,324648,4935.27,Hr Go Recruitment Ltd,HRG002,Director of Operational Services,Revenue,Employees
http://statistics.data.gov.uk/id/local-authority/29UN,Thanet District Council,13/11/2012,324649,5714.18,Hr Go Recruitment Ltd,HRG002,Director of Operational Services,Revenue,Employees
http://statistics.data.gov.uk/id/local-authority/29UN,Thanet District Council,13/11/2012,325139,5538.04,Hr Go Recruitment Ltd,HRG002,Director of Operational Services,Revenue,Employees
http://statistics.data.gov.uk/id/local-authority/29UN,Thanet District Council,13/11/2012,325140,4168.43,Hr Go Recruitment Ltd,HRG002,Director of Operational Services,Revenue,Employees
http://statistics.data.gov.uk/id/local-authority/29UN,Thanet District Council,13/11/2012,324419,1526.90,Hydro-Cleansing Ltd,HYD012,Director of Operational Services,Revenue,Premises Related Expenditure
http://statistics.data.gov.uk/id/local-authority/29UN,Thanet District Council,13/11/2012,324798,1400.72,Hydro-Cleansing Ltd,HYD012,Director of Operational Services,Revenue,Premises Related Expenditure
http://statistics.data.gov.uk/id/local-authority/29UN,Thanet District Council,13/11/2012,325234,1440.00,Idox Software  Limited,IDO001,Director of Community Services ,Revenue,Supplies And Services
http://statistics.data.gov.uk/id/local-authority/29UN,Thanet District Council,13/11/2012,325148,3033.60,Imperial Civil Enforcement Sols Ltd,IMP008,Director of Operational Services,Revenue,Supplies And Services
http://statistics.data.gov.uk/id/local-authority/29UN,Thanet District Council,13/11/2012,324858,993.00,Intrinsic Technology Limited,INT006,Director of Corporate Services and Transformation,Revenue,Supplies And Services
http://statistics.data.gov.uk/id/local-authority/29UN,Thanet District Council,13/11/2012,325330,10524.88,Jenner (Contractors) Ltd,JEN002,Director of Corporate Services and Transformation,Balance Sheet,Long Term Assets
http://statistics.data.gov.uk/id/local-authority/29UN,Thanet District Council,13/11/2012,325567,587.04,John Gale,GAL001,Director of Corporate Services and Transformation,Balance Sheet,Long Term Assets
http://statistics.data.gov.uk/id/local-authority/29UN,Thanet District Council,13/11/2012,324702,520.00,Jump It Recruitment Solutions Ltd,JUM001,East Kent Shared Services,Revenue,Employees
http://statistics.data.gov.uk/id/local-authority/29UN,Thanet District Council,13/11/2012,325135,650.00,Jump It Recruitment Solutions Ltd,JUM001,East Kent Shared Services,Revenue,Employees
http://statistics.data.gov.uk/id/local-authority/29UN,Thanet District Council,13/11/2012,325679,650.00,Jump It Recruitment Solutions Ltd,JUM001,East Kent Shared Services,Revenue,Employees
http://statistics.data.gov.uk/id/local-authority/29UN,Thanet District Council,13/11/2012,324817,2384.00,Kent County Council,KCC002,Director of Corporate Services and Transformation,Revenue,Supplies And Services
http://statistics.data.gov.uk/id/local-authority/29UN,Thanet District Council,13/11/2012,325210,1200.00,Kent County Council,KCC002,Director of Community Services ,Revenue,Supplies And Services
http://statistics.data.gov.uk/id/local-authority/29UN,Thanet District Council,13/11/2012,325608,810.00,Kent County Council,KCC002,Director of Corporate Services and Transformation,Revenue,Supplies And Services
http://statistics.data.gov.uk/id/local-authority/29UN,Thanet District Council,13/11/2012,325083,2821.00,Kent County Council (Kcs),KCC003,Director of Corporate Services and Transformation,Revenue,Supplies And Services
http://statistics.data.gov.uk/id/local-authority/29UN,Thanet District Council,13/11/2012,325133,4226.66,Kent County Council (Kcs),KCC003,Director of Corporate Services and Transformation,Revenue,Supplies And Services
http://statistics.data.gov.uk/id/local-authority/29UN,Thanet District Council,13/11/2012,325133,230.54,Kent County Council (Kcs),KCC003,Director of Community Services ,Revenue,Supplies And Services
http://statistics.data.gov.uk/id/local-authority/29UN,Thanet District Council,13/11/2012,325133,922.20,Kent County Council (Kcs),KCC003,Director of Operational Services,Revenue,Supplies And Services
http://statistics.data.gov.uk/id/local-authority/29UN,Thanet District Council,13/11/2012,325133,230.55,Kent County Council (Kcs),KCC003,East Kent Shared Services,Revenue,Supplies And Services
http://statistics.data.gov.uk/id/local-authority/29UN,Thanet District Council,13/11/2012,324627,4568.42,L W Burt & Son Ltd,BUR027,Director of Operational Services,Revenue,Premises Related Expenditure
http://statistics.data.gov.uk/id/local-authority/29UN,Thanet District Council,13/11/2012,325231,1945.00,Lloyd Bore,LLO003,Director of Corporate Services and Transformation,Balance Sheet,Long Term Assets
http://statistics.data.gov.uk/id/local-authority/29UN,Thanet District Council,13/11/2012,325750,578.31,Locata (Housing Services) Ltd,LOC015,Director of Community Services ,Revenue,Supplies And Services
http://statistics.data.gov.uk/id/local-authority/29UN,Thanet District Council,13/11/2012,325751,2475.00,Locata (Housing Services) Ltd,LOC015,Director of Community Services ,Revenue,Supplies And Services
http://statistics.data.gov.uk/id/local-authority/29UN,Thanet District Council,13/11/2012,325753,3820.00,Locata (Housing Services) Ltd,LOC015,Director of Community Services ,Revenue,Supplies And Services
http://statistics.data.gov.uk/id/local-authority/29UN,Thanet District Council,13/11/2012,325754,29661.24,Locata (Housing Services) Ltd,LOC015,Director of Community Services ,Revenue,Supplies And Services
http://statistics.data.gov.uk/id/local-authority/29UN,Thanet District Council,13/11/2012,325121,600.00,M D Electrics,MDE001,Director of Operational Services,Revenue,Premises Related Expenditure
http://statistics.data.gov.uk/id/local-authority/29UN,Thanet District Council,13/11/2012,325705,10000.00,Margate Town Team,MTO001,Director of Community Services ,Revenue,Supplies And Services
http://statistics.data.gov.uk/id/local-authority/29UN,Thanet District Council,13/11/2012,325064,650.00,Maxwells Grounds Maintenance Ltd,MAX002,Director of Operational Services,Revenue,Premises Related Expenditure
http://statistics.data.gov.uk/id/local-authority/29UN,Thanet District Council,13/11/2012,324785,13117.07,Mears Ltd,MEA003,Director of Corporate Services and Transformation,Balance Sheet,Current Assets
http://statistics.data.gov.uk/id/local-authority/29UN,Thanet District Council,13/11/2012,324786,3783.81,Mears Ltd,MEA003,Director of Corporate Services and Transformation,Balance Sheet,Current Assets
http://statistics.data.gov.uk/id/local-authority/29UN,Thanet District Council,13/11/2012,324787,31493.10,Mears Ltd,MEA003,Director of Corporate Services and Transformation,Balance Sheet,Current Assets
http://statistics.data.gov.uk/id/local-authority/29UN,Thanet District Council,13/11/2012,324874,49107.55,Mears Ltd,MEA003,Director of Corporate Services and Transformation,Balance Sheet,Current Assets
http://statistics.data.gov.uk/id/local-authority/29UN,Thanet District Council,13/11/2012,324875,33390.19,Mears Ltd,MEA003,Director of Corporate Services and Transformation,Balance Sheet,Current Assets
http://statistics.data.gov.uk/id/local-authority/29UN,Thanet District Council,13/11/2012,324876,2283.38,Mears Ltd,MEA003,Director of Corporate Services and Transformation,Balance Sheet,Current Assets
http://statistics.data.gov.uk/id/local-authority/29UN,Thanet District Council,13/11/2012,325073,767.90,Mears Ltd,MEA003,Director of Corporate Services and Transformation,Balance Sheet,Current Assets
http://statistics.data.gov.uk/id/local-authority/29UN,Thanet District Council,13/11/2012,325073,5101.51,Mears Ltd,MEA003,Director of Operational Services,Revenue,Premises Related Expenditure
http://statistics.data.gov.uk/id/local-authority/29UN,Thanet District Council,13/11/2012,325078,2409.27,Mears Ltd,MEA003,Director of Operational Services,Revenue,Premises Related Expenditure
http://statistics.data.gov.uk/id/local-authority/29UN,Thanet District Council,13/11/2012,325665,1396.50,Michael Page Finance,PAG008,Director of Corporate Services and Transformation,Revenue,Supplies And Services
http://statistics.data.gov.uk/id/local-authority/29UN,Thanet District Council,13/11/2012,325062,508.00,Miles Waterscapes Ltd,MIL019,Director of Operational Services,Revenue,Premises Related Expenditure
http://statistics.data.gov.uk/id/local-authority/29UN,Thanet District Council,13/11/2012,325134,905.10,Morgan Jones Ltd,MOR001,East Kent Shared Services,Revenue,Employees
http://statistics.data.gov.uk/id/local-authority/29UN,Thanet District Council,13/11/2012,325569,36.00,N J P Contractors,NJP001,Director of Community Services ,Revenue,Premises Related Expenditure
http://statistics.data.gov.uk/id/local-authority/29UN,Thanet District Council,13/11/2012,325569,877.00,N J P Contractors,NJP001,Director of Operational Services,Revenue,Premises Related Expenditure
http://statistics.data.gov.uk/id/local-authority/29UN,Thanet District Council,13/11/2012,325160,5857.90,National Express Ltd,NAT010,Director of Community Services ,Revenue,Supplies And Services
http://statistics.data.gov.uk/id/local-authority/29UN,Thanet District Council,13/11/2012,325138,12173.28,Nec (Uk) Ltd,NEC003,East Kent Shared Services,Revenue,Supplies And Services
http://statistics.data.gov.uk/id/local-authority/29UN,Thanet District Council,13/11/2012,325197,8177.97,Nec (Uk) Ltd,NEC003,Director of Corporate Services and Transformation,Revenue,Supplies And Services
http://statistics.data.gov.uk/id/local-authority/29UN,Thanet District Council,13/11/2012,325570,2000.00,Neopost Ltd Credifon,NEO002,Director of Operational Services,Revenue,Supplies And Services
http://statistics.data.gov.uk/id/local-authority/29UN,Thanet District Council,13/11/2012,325082,2500.00,Northgate Inf Solutions Uk Ltd,NOR018,Director of Community Services ,Revenue,Supplies And Services
http://statistics.data.gov.uk/id/local-authority/29UN,Thanet District Council,13/11/2012,325516,500.00,Northgate Inf Solutions Uk Ltd,NOR018,East Kent Shared Services,Revenue,Supplies And Services
http://statistics.data.gov.uk/id/local-authority/29UN,Thanet District Council,13/11/2012,325565,4892.00,Northwood Builders,NOR002,Director of Corporate Services and Transformation,Balance Sheet,Long Term Assets
http://statistics.data.gov.uk/id/local-authority/29UN,Thanet District Council,13/11/2012,324783,10877.55,Ocs Group Uk Ltd T/A Fountains,OCS005,Director of Corporate Services and Transformation,Balance Sheet,Current Assets
http://statistics.data.gov.uk/id/local-authority/29UN,Thanet District Council,13/11/2012,324808,750.00,Park Leisure Ltd,PAR008,Director of Operational Services,Revenue,Supplies And Services
http://statistics.data.gov.uk/id/local-authority/29UN,Thanet District Council,13/11/2012,323297,14521.45,Proact Uk Ltd,PRO028,East Kent Shared Services,Revenue,Supplies And Services
http://statistics.data.gov.uk/id/local-authority/29UN,Thanet District Council,13/11/2012,325065,41514.81,Profile Security Services Limited,PRO018,Director of Operational Services,Revenue,Supplies And Services
http://statistics.data.gov.uk/id/local-authority/29UN,Thanet District Council,13/11/2012,324113,-3608.15,Royal Mail,ROY004,Director of Corporate Services and Transformation,Revenue,Supplies And Services
http://statistics.data.gov.uk/id/local-authority/29UN,Thanet District Council,13/11/2012,324137,2701.23,Royal Mail,ROY004,Director of Corporate Services and Transformation,Revenue,Supplies And Services
http://statistics.data.gov.uk/id/local-authority/29UN,Thanet District Council,13/11/2012,324451,2323.71,Royal Mail,ROY004,Director of Corporate Services and Transformation,Revenue,Supplies And Services
http://statistics.data.gov.uk/id/local-authority/29UN,Thanet District Council,13/11/2012,324857,554.43,Royal Mail,ROY004,Director of Corporate Services and Transformation,Revenue,Supplies And Services
http://statistics.data.gov.uk/id/local-authority/29UN,Thanet District Council,13/11/2012,324867,1736.88,Royal Mail,ROY004,Director of Corporate Services and Transformation,Revenue,Supplies And Services
http://statistics.data.gov.uk/id/local-authority/29UN,Thanet District Council,13/11/2012,325526,2126.55,Royal Mail,ROY004,Director of Corporate Services and Transformation,Revenue,Supplies And Services
http://statistics.data.gov.uk/id/local-authority/29UN,Thanet District Council,13/11/2012,324448,725.03,Sba Ltd,SBA001,Director of Operational Services,Revenue,Supplies And Services
http://statistics.data.gov.uk/id/local-authority/29UN,Thanet District Council,13/11/2012,325104,752.40,Shaw & Sons Ltd,SHA002,Director of Corporate Services and Transformation,Revenue,Supplies And Services
http://statistics.data.gov.uk/id/local-authority/29UN,Thanet District Council,13/11/2012,324773,887.40,Shaw Electrical,SHA005,Director of Operational Services,Revenue,Premises Related Expenditure
http://statistics.data.gov.uk/id/local-authority/29UN,Thanet District Council,13/11/2012,324795,875.00,Shaw Electrical,SHA005,Director of Corporate Services and Transformation,Balance Sheet,Long Term Assets
http://statistics.data.gov.uk/id/local-authority/29UN,Thanet District Council,13/11/2012,325561,2000.00,Signature,SIG012,Director of Corporate Services and Transformation,Balance Sheet,Long Term Assets
http://statistics.data.gov.uk/id/local-authority/29UN,Thanet District Council,13/11/2012,325564,3108.95,Signature,SIG012,Director of Corporate Services and Transformation,Balance Sheet,Long Term Assets
http://statistics.data.gov.uk/id/local-authority/29UN,Thanet District Council,13/11/2012,324386,1743.50,Solent Marine Ltd,SOL011,Director of Corporate Services and Transformation,Balance Sheet,Long Term Assets
http://statistics.data.gov.uk/id/local-authority/29UN,Thanet District Council,13/11/2012,325316,4577.09,Southern Water,SWA001,Director of Operational Services,Revenue,Premises Related Expenditure
http://statistics.data.gov.uk/id/local-authority/29UN,Thanet District Council,13/11/2012,325317,511.72,Southern Water,SWA001,Director of Operational Services,Revenue,Premises Related Expenditure
http://statistics.data.gov.uk/id/local-authority/29UN,Thanet District Council,13/11/2012,325059,250.00,Sparshatts Of Kent Ltd,SPA008,Director of Operational Services,Revenue,Income
http://statistics.data.gov.uk/id/local-authority/29UN,Thanet District Council,13/11/2012,325105,527.39,Sparshatts Of Kent Ltd,SPA008,Director of Operational Services,Revenue,Transport Related Expenditure
http://statistics.data.gov.uk/id/local-authority/29UN,Thanet District Council,13/11/2012,325484,920.00,Stagecoach Services Limited,STA023,Director of Corporate Services and Transformation,Balance Sheet,Current Assets
http://statistics.data.gov.uk/id/local-authority/29UN,Thanet District Council,13/11/2012,325498,615.00,Stonaco Fabrications Ltd,STO002,Director of Operational Services,Revenue,Premises Related Expenditure
http://statistics.data.gov.uk/id/local-authority/29UN,Thanet District Council,13/11/2012,325530,720.00,Stonaco Fabrications Ltd,STO002,Director of Operational Services,Revenue,Premises Related Expenditure
http://statistics.data.gov.uk/id/local-authority/29UN,Thanet District Council,13/11/2012,324639,751.00,Streetmaster (S.Wales) Limited,STR001,Director of Operational Services,Revenue,Supplies And Services
http://statistics.data.gov.uk/id/local-authority/29UN,Thanet District Council,13/11/2012,325063,661.00,Streetmaster (S.Wales) Limited,STR001,Director of Operational Services,Revenue,Supplies And Services
http://statistics.data.gov.uk/id/local-authority/29UN,Thanet District Council,13/11/2012,325190,2135.00,Thanet Heating Co Ltd,THE010,Director of Corporate Services and Transformation,Balance Sheet,Current Assets
http://statistics.data.gov.uk/id/local-authority/29UN,Thanet District Council,13/11/2012,324321,520.20,Thanet Waste Services Ltd,TWA001,Director of Operational Services,Revenue,Third Party Payments
http://statistics.data.gov.uk/id/local-authority/29UN,Thanet District Council,13/11/2012,325198,1014.30,Thanet Waste Services Ltd,TWA001,Director of Operational Services,Revenue,Third Party Payments
http://statistics.data.gov.uk/id/local-authority/29UN,Thanet District Council,13/11/2012,325053,787.50,The Bay Guest House,BAY006,Director of Community Services ,Revenue,Supplies And Services
http://statistics.data.gov.uk/id/local-authority/29UN,Thanet District Council,13/11/2012,324403,1541.67,The Glenwood Hotel,GLE007,Director of Community Services ,Revenue,Supplies And Services
http://statistics.data.gov.uk/id/local-authority/29UN,Thanet District Council,13/11/2012,324878,1658.33,The Glenwood Hotel,GLE007,Director of Community Services ,Revenue,Supplies And Services
http://statistics.data.gov.uk/id/local-authority/29UN,Thanet District Council,13/11/2012,325590,716.10,Thomson Reuters,THO043,Director of Corporate Services and Transformation,Revenue,Supplies And Services
http://statistics.data.gov.uk/id/local-authority/29UN,Thanet District Council,13/11/2012,325591,740.28,Thomson Reuters,THO043,Director of Corporate Services and Transformation,Revenue,Supplies And Services
http://statistics.data.gov.uk/id/local-authority/29UN,Thanet District Council,13/11/2012,325592,776.55,Thomson Reuters,THO043,Director of Corporate Services and Transformation,Revenue,Supplies And Services
http://statistics.data.gov.uk/id/local-authority/29UN,Thanet District Council,13/11/2012,325592,776.55,Thomson Reuters,THO043,Director of Community Services ,Revenue,Supplies And Services
http://statistics.data.gov.uk/id/local-authority/29UN,Thanet District Council,13/11/2012,325593,1106.70,Thomson Reuters,THO043,Director of Corporate Services and Transformation,Revenue,Supplies And Services
http://statistics.data.gov.uk/id/local-authority/29UN,Thanet District Council,13/11/2012,325593,1106.70,Thomson Reuters,THO043,Director of Community Services ,Revenue,Supplies And Services
http://statistics.data.gov.uk/id/local-authority/29UN,Thanet District Council,13/11/2012,325594,731.91,Thomson Reuters,THO043,Director of Corporate Services and Transformation,Revenue,Supplies And Services
http://statistics.data.gov.uk/id/local-authority/29UN,Thanet District Council,13/11/2012,325596,732.84,Thomson Reuters,THO043,Director of Corporate Services and Transformation,Revenue,Supplies And Services
http://statistics.data.gov.uk/id/local-authority/29UN,Thanet District Council,13/11/2012,325597,691.92,Thomson Reuters,THO043,Director of Corporate Services and Transformation,Revenue,Supplies And Services
http://statistics.data.gov.uk/id/local-authority/29UN,Thanet District Council,13/11/2012,325599,473.37,Thomson Reuters,THO043,Director of Corporate Services and Transformation,Revenue,Supplies And Services
http://statistics.data.gov.uk/id/local-authority/29UN,Thanet District Council,13/11/2012,325600,559.86,Thomson Reuters,THO043,Director of Community Services ,Revenue,Supplies And Services
http://statistics.data.gov.uk/id/local-authority/29UN,Thanet District Council,13/11/2012,325601,404.55,Thomson Reuters,THO043,Director of Corporate Services and Transformation,Revenue,Supplies And Services
http://statistics.data.gov.uk/id/local-authority/29UN,Thanet District Council,13/11/2012,325602,521.73,Thomson Reuters,THO043,Director of Corporate Services and Transformation,Revenue,Supplies And Services
http://statistics.data.gov.uk/id/local-authority/29UN,Thanet District Council,13/11/2012,325603,922.56,Thomson Reuters,THO043,Director of Corporate Services and Transformation,Revenue,Supplies And Services
http://statistics.data.gov.uk/id/local-authority/29UN,Thanet District Council,13/11/2012,325643,3000.00,Ursuline College,URS001,Director of Operational Services,Revenue,Supplies And Services
http://statistics.data.gov.uk/id/local-authority/29UN,Thanet District Council,13/11/2012,324108,460.27,W G Burbridge,BUR016,Director of Operational Services,Revenue,Premises Related Expenditure
http://statistics.data.gov.uk/id/local-authority/29UN,Thanet District Council,13/11/2012,325574,495.00,Willow Pumps Limited,WIL042,Director of Operational Services,Revenue,Premises Related Expenditure
http://statistics.data.gov.uk/id/local-authority/29UN,Thanet District Council,13/11/2012,325067,-430.40,Zen Internet Ltd,ZEN001,Director of Operational Services,Revenue,Supplies And Services
http://statistics.data.gov.uk/id/local-authority/29UN,Thanet District Council,13/11/2012,325678,246.72,Zen Internet Ltd,ZEN001,Director of Operational Services,Revenue,Supplies And Services
http://statistics.data.gov.uk/id/local-authority/29UN,Thanet District Council,13/11/2012,325806,516.48,Zen Internet Ltd,ZEN001,Director of Operational Services,Revenue,Supplies And Services
http://statistics.data.gov.uk/id/local-authority/29UN,Thanet District Council,15/11/2012,326159,1088.76,John Gale,GAL001,Director of Corporate Services and Transformation,Balance Sheet,Long Term Assets
http://statistics.data.gov.uk/id/local-authority/29UN,Thanet District Council,15/11/2012,325642,2999.13,Royal Mail,ROY004,Director of Operational Services,Revenue,Supplies And Services
http://statistics.data.gov.uk/id/local-authority/29UN,Thanet District Council,19/11/2012,N/A,90.25,REDACTED PERSONAL DATA,N/A,Director of Community Services ,Revenue,Supplies And Services
http://statistics.data.gov.uk/id/local-authority/29UN,Thanet District Council,19/11/2012,N/A,652.24,REDACTED PERSONAL DATA,N/A,Director of Community Services ,Revenue,Transport Related Expenditure
http://statistics.data.gov.uk/id/local-authority/29UN,Thanet District Council,20/11/2012,326264,514.25,Allstar Business Solutions Ltd,ALL038,Director of Operational Services,Revenue,Transport Related Expenditure
http://statistics.data.gov.uk/id/local-authority/29UN,Thanet District Council,20/11/2012,326068,13834.00,Audit Commission,AUD001,Director of Corporate Services and Transformation,Revenue,Supplies And Services
http://statistics.data.gov.uk/id/local-authority/29UN,Thanet District Council,20/11/2012,325696,2526.70,Berryman,BER001,Director of Operational Services,Revenue,Supplies And Services
http://statistics.data.gov.uk/id/local-authority/29UN,Thanet District Council,20/11/2012,324671,1005.00,Blackburns Funeral Service,BLA002,Director of Corporate Services and Transformation,Revenue,Supplies And Services
http://statistics.data.gov.uk/id/local-authority/29UN,Thanet District Council,20/11/2012,325203,1033.50,Booker Alexander Ltd,BOO013,Director of Community Services ,Revenue,Supplies And Services
http://statistics.data.gov.uk/id/local-authority/29UN,Thanet District Council,20/11/2012,325684,542.88,Bridge Security Cctv Ltd,BRI039,Director of Operational Services,Revenue,Supplies And Services
http://statistics.data.gov.uk/id/local-authority/29UN,Thanet District Council,20/11/2012,325854,1082.75,Bt Payment Services Ltd,BTE003,Director of Corporate Services and Transformation,Revenue,Supplies And Services
http://statistics.data.gov.uk/id/local-authority/29UN,Thanet District Council,20/11/2012,325542,588.00,Clear Picture Services Limited,CLE015,Director of Corporate Services and Transformation,Balance Sheet,Current Assets
http://statistics.data.gov.uk/id/local-authority/29UN,Thanet District Council,20/11/2012,325543,926.00,Clear Picture Services Limited,CLE015,Director of Corporate Services and Transformation,Balance Sheet,Current Assets
http://statistics.data.gov.uk/id/local-authority/29UN,Thanet District Council,20/11/2012,325617,1562.21,Clear Picture Services Limited,CLE015,Director of Corporate Services and Transformation,Balance Sheet,Current Assets
http://statistics.data.gov.uk/id/local-authority/29UN,Thanet District Council,20/11/2012,325287,417.90,Community Network Services Limited,CNS001,Director of Operational Services,Revenue,Transport Related Expenditure
http://statistics.data.gov.uk/id/local-authority/29UN,Thanet District Council,20/11/2012,326251,5955.00,Connoisseur Renovations,CON037,Director of Corporate Services and Transformation,Balance Sheet,Long Term Assets
http://statistics.data.gov.uk/id/local-authority/29UN,Thanet District Council,20/11/2012,325568,43251.32,Coombs (Canterbury) Ltd,COO033,Director of Corporate Services and Transformation,Balance Sheet,Long Term Assets
http://statistics.data.gov.uk/id/local-authority/29UN,Thanet District Council,20/11/2012,325782,18264.25,Crown Estate Re Chesterton Humberts,CRO022,Director of Operational Services,Revenue,Premises Related Expenditure
http://statistics.data.gov.uk/id/local-authority/29UN,Thanet District Council,20/11/2012,325783,23733.50,Crown Estate Re Chesterton Humberts,CRO022,Director of Operational Services,Revenue,Premises Related Expenditure
http://statistics.data.gov.uk/id/local-authority/29UN,Thanet District Council,20/11/2012,325784,4435.75,Crown Estate Re Chesterton Humberts,CRO022,Director of Operational Services,Revenue,Premises Related Expenditure
http://statistics.data.gov.uk/id/local-authority/29UN,Thanet District Council,20/11/2012,325536,680.00,Daniels Healthcare Limited,DAN014,Director of Operational Services,Revenue,Third Party Payments
http://statistics.data.gov.uk/id/local-authority/29UN,Thanet District Council,20/11/2012,325622,600.35,Dennis Eagle Ltd,DEN005,Director of Operational Services,Revenue,Transport Related Expenditure
http://statistics.data.gov.uk/id/local-authority/29UN,Thanet District Council,20/11/2012,325623,511.96,Dennis Eagle Ltd,DEN005,Director of Operational Services,Revenue,Transport Related Expenditure
http://statistics.data.gov.uk/id/local-authority/29UN,Thanet District Council,20/11/2012,326133,511.96,Dennis Eagle Ltd,DEN005,Director of Operational Services,Revenue,Transport Related Expenditure
http://statistics.data.gov.uk/id/local-authority/29UN,Thanet District Council,20/11/2012,325852,2816.00,Egbert H Taylor & Company Ltd,TAY005,Director of Corporate Services and Transformation,Balance Sheet,Long Term Assets
http://statistics.data.gov.uk/id/local-authority/29UN,Thanet District Council,20/11/2012,325255,2268.59,Ernest Doe & Sons Ltd,ERN003,Director of Operational Services,Revenue,Supplies And Services
http://statistics.data.gov.uk/id/local-authority/29UN,Thanet District Council,20/11/2012,326224,4838.00,Evermech Ltd,EVE011,Director of Corporate Services and Transformation,Balance Sheet,Long Term Assets
http://statistics.data.gov.uk/id/local-authority/29UN,Thanet District Council,20/11/2012,326223,797.28,Family Mosaic Housing,FAM001,Director of Corporate Services and Transformation,Balance Sheet,Long Term Assets
http://statistics.data.gov.uk/id/local-authority/29UN,Thanet District Council,20/11/2012,326225,778.22,Family Mosaic Housing,FAM001,Director of Corporate Services and Transformation,Balance Sheet,Long Term Assets
http://statistics.data.gov.uk/id/local-authority/29UN,Thanet District Council,20/11/2012,326249,637.39,Family Mosaic Housing,FAM001,Director of Corporate Services and Transformation,Balance Sheet,Long Term Assets
http://statistics.data.gov.uk/id/local-authority/29UN,Thanet District Council,20/11/2012,326252,861.52,Family Mosaic Housing,FAM001,Director of Corporate Services and Transformation,Balance Sheet,Long Term Assets
http://statistics.data.gov.uk/id/local-authority/29UN,Thanet District Council,20/11/2012,325588,930.00,Florence Court Hotel,FLO003,Director of Community Services ,Revenue,Supplies And Services
http://statistics.data.gov.uk/id/local-authority/29UN,Thanet District Council,20/11/2012,326212,535.10,Freight Transport Association,FRE007,Director of Operational Services,Revenue,Supplies And Services
http://statistics.data.gov.uk/id/local-authority/29UN,Thanet District Council,20/11/2012,326119,5111.30,Glasdon Uk Ltd,GLA001,Director of Corporate Services and Transformation,Revenue,Supplies And Services
http://statistics.data.gov.uk/id/local-authority/29UN,Thanet District Council,20/11/2012,326215,750.00,Global Generation Church,GLO006,Director of Corporate Services and Transformation,Revenue,Supplies And Services
http://statistics.data.gov.uk/id/local-authority/29UN,Thanet District Council,20/11/2012,325182,2271.12,Goodyear Dunlop Truckforce,GOO018,Director of Operational Services,Revenue,Transport Related Expenditure
http://statistics.data.gov.uk/id/local-authority/29UN,Thanet District Council,20/11/2012,325196,1243.44,Goodyear Dunlop Truckforce,GOO018,Director of Operational Services,Revenue,Transport Related Expenditure
http://statistics.data.gov.uk/id/local-authority/29UN,Thanet District Council,20/11/2012,326265,5000.00,H M Courts & Tribunal Service,HMC007,Director of Operational Services,Revenue,Supplies And Services
http://statistics.data.gov.uk/id/local-authority/29UN,Thanet District Council,20/11/2012,325243,4232.00,Holbrook Revell Electrical Ltd,HOL015,Director of Operational Services,Revenue,Premises Related Expenditure
http://statistics.data.gov.uk/id/local-authority/29UN,Thanet District Council,20/11/2012,325246,1067.79,Holbrook Revell Electrical Ltd,HOL015,Director of Operational Services,Revenue,Premises Related Expenditure
http://statistics.data.gov.uk/id/local-authority/29UN,Thanet District Council,20/11/2012,325514,16500.00,Hopkinsons Fairdeals Remarketing Llp,HOP003,Director of Corporate Services and Transformation,Balance Sheet,Long Term Assets
http://statistics.data.gov.uk/id/local-authority/29UN,Thanet District Council,20/11/2012,323387,-682.69,Hr Go Recruitment Ltd,HRG002,Director of Operational Services,Revenue,Employees
http://statistics.data.gov.uk/id/local-authority/29UN,Thanet District Council,20/11/2012,325519,4165.71,Hr Go Recruitment Ltd,HRG002,Director of Operational Services,Revenue,Employees
http://statistics.data.gov.uk/id/local-authority/29UN,Thanet District Council,20/11/2012,325520,444.00,Hr Go Recruitment Ltd,HRG002,Director of Operational Services,Revenue,Employees
http://statistics.data.gov.uk/id/local-authority/29UN,Thanet District Council,20/11/2012,326109,4721.09,Hr Go Recruitment Ltd,HRG002,Director of Operational Services,Revenue,Employees
http://statistics.data.gov.uk/id/local-authority/29UN,Thanet District Council,20/11/2012,325632,690.81,Hydraulic & Engineering Servs Ltd,HYD011,Director of Operational Services,Revenue,Premises Related Expenditure
http://statistics.data.gov.uk/id/local-authority/29UN,Thanet District Council,20/11/2012,325671,14651.66,Idox Software  Limited,IDO001,Director of Corporate Services and Transformation,Revenue,Supplies And Services
http://statistics.data.gov.uk/id/local-authority/29UN,Thanet District Council,20/11/2012,324880,420.00,Invicta Solar Energy Ltd,INV014,Director of Community Services ,Revenue,Supplies And Services
http://statistics.data.gov.uk/id/local-authority/29UN,Thanet District Council,20/11/2012,325811,1993.25,J A & J M French,FRE016,Director of Operational Services,Revenue,Supplies And Services
http://statistics.data.gov.uk/id/local-authority/29UN,Thanet District Council,20/11/2012,325162,550.00,J Redpath Buchanan & Co Ltd,RED001,Director of Operational Services,Revenue,Premises Related Expenditure
http://statistics.data.gov.uk/id/local-authority/29UN,Thanet District Council,20/11/2012,325680,303.00,J Redpath Buchanan & Co Ltd,RED001,Director of Community Services ,Revenue,Premises Related Expenditure
http://statistics.data.gov.uk/id/local-authority/29UN,Thanet District Council,20/11/2012,325680,606.00,J Redpath Buchanan & Co Ltd,RED001,Director of Operational Services,Revenue,Premises Related Expenditure
http://statistics.data.gov.uk/id/local-authority/29UN,Thanet District Council,20/11/2012,326262,321959.00,Kent & Medway Towns Fire Authority,KMT001,Director of Corporate Services and Transformation,Balance Sheet,Reserves
http://statistics.data.gov.uk/id/local-authority/29UN,Thanet District Council,20/11/2012,326260,4964574.00,Kent County Council,KCC022,Director of Corporate Services and Transformation,Balance Sheet,Reserves
http://statistics.data.gov.uk/id/local-authority/29UN,Thanet District Council,20/11/2012,325850,738.91,Kent County Council (Kcs),KCC003,Director of Community Services ,Revenue,Premises Related Expenditure
http://statistics.data.gov.uk/id/local-authority/29UN,Thanet District Council,20/11/2012,326261,657092.00,Kent Police Authority,KPA003,Director of Corporate Services and Transformation,Balance Sheet,Reserves
http://statistics.data.gov.uk/id/local-authority/29UN,Thanet District Council,20/11/2012,325137,3360.00,Kingswood Joinery & Building Ltd,KIN002,Director of Operational Services,Revenue,Premises Related Expenditure
http://statistics.data.gov.uk/id/local-authority/29UN,Thanet District Council,20/11/2012,325687,966.94,L W Burt & Son Ltd,BUR027,Director of Operational Services,Revenue,Premises Related Expenditure
http://statistics.data.gov.uk/id/local-authority/29UN,Thanet District Council,20/11/2012,325689,526.51,L W Burt & Son Ltd,BUR027,Director of Operational Services,Revenue,Premises Related Expenditure
http://statistics.data.gov.uk/id/local-authority/29UN,Thanet District Council,20/11/2012,325691,453.54,L W Burt & Son Ltd,BUR027,Director of Operational Services,Revenue,Premises Related Expenditure
http://statistics.data.gov.uk/id/local-authority/29UN,Thanet District Council,20/11/2012,325692,1637.82,L W Burt & Son Ltd,BUR027,Director of Operational Services,Revenue,Premises Related Expenditure
http://statistics.data.gov.uk/id/local-authority/29UN,Thanet District Council,20/11/2012,325693,551.28,L W Burt & Son Ltd,BUR027,Director of Community Services ,Revenue,Premises Related Expenditure
http://statistics.data.gov.uk/id/local-authority/29UN,Thanet District Council,20/11/2012,325694,416.89,L W Burt & Son Ltd,BUR027,Director of Community Services ,Revenue,Premises Related Expenditure
http://statistics.data.gov.uk/id/local-authority/29UN,Thanet District Council,20/11/2012,325695,1028.00,L W Burt & Son Ltd,BUR027,Director of Operational Services,Revenue,Premises Related Expenditure
http://statistics.data.gov.uk/id/local-authority/29UN,Thanet District Council,20/11/2012,323625,4684.00,Layer47,LAY003,East Kent Shared Services,Revenue,Supplies And Services
http://statistics.data.gov.uk/id/local-authority/29UN,Thanet District Council,20/11/2012,324768,3100.00,Lednor Construction Limited,LED003,Director of Corporate Services and Transformation,Balance Sheet,Current Assets
http://statistics.data.gov.uk/id/local-authority/29UN,Thanet District Council,20/11/2012,325752,464.00,Locata (Housing Services) Ltd,LOC015,Director of Community Services ,Revenue,Supplies And Services
http://statistics.data.gov.uk/id/local-authority/29UN,Thanet District Council,20/11/2012,325792,803.00,Maverick Technology (Uk) Ltd,MAV002,Director of Operational Services,Revenue,Supplies And Services
http://statistics.data.gov.uk/id/local-authority/29UN,Thanet District Council,20/11/2012,325876,5314.85,Med Clean South Ltd,MED015,Director of Operational Services,Revenue,Premises Related Expenditure
http://statistics.data.gov.uk/id/local-authority/29UN,Thanet District Council,20/11/2012,325877,4649.91,Med Clean South Ltd,MED015,Director of Operational Services,Revenue,Premises Related Expenditure
http://statistics.data.gov.uk/id/local-authority/29UN,Thanet District Council,20/11/2012,326142,1149.50,Michael Page Finance,PAG008,Director of Corporate Services and Transformation,Revenue,Supplies And Services
http://statistics.data.gov.uk/id/local-authority/29UN,Thanet District Council,20/11/2012,326075,531.98,Mitchell Powersystems,MIT006,Director of Operational Services,Revenue,Transport Related Expenditure
http://statistics.data.gov.uk/id/local-authority/29UN,Thanet District Council,20/11/2012,326263,5000.00,Neopost Ltd Credifon,NEO002,Director of Corporate Services and Transformation,Revenue,Supplies And Services
http://statistics.data.gov.uk/id/local-authority/29UN,Thanet District Council,20/11/2012,325241,446.36,Ocs Group Uk Ltd T/A Fountains,OCS005,Director of Operational Services,Revenue,Premises Related Expenditure
http://statistics.data.gov.uk/id/local-authority/29UN,Thanet District Council,20/11/2012,326228,950.00,Office Of Communications,OFF006,Director of Operational Services,Revenue,Supplies And Services
http://statistics.data.gov.uk/id/local-authority/29UN,Thanet District Council,20/11/2012,326105,1150.00,Priority Hire Ltd,PRI032,Director of Operational Services,Revenue,Transport Related Expenditure
http://statistics.data.gov.uk/id/local-authority/29UN,Thanet District Council,20/11/2012,326107,1150.00,Priority Hire Ltd,PRI032,Director of Operational Services,Revenue,Transport Related Expenditure
http://statistics.data.gov.uk/id/local-authority/29UN,Thanet District Council,20/11/2012,325584,699.21,Sba Ltd,SBA001,Director of Operational Services,Revenue,Supplies And Services
http://statistics.data.gov.uk/id/local-authority/29UN,Thanet District Council,20/11/2012,326248,3873.02,Signature,SIG012,Director of Corporate Services and Transformation,Balance Sheet,Long Term Assets
http://statistics.data.gov.uk/id/local-authority/29UN,Thanet District Council,20/11/2012,326250,2426.30,Signature,SIG012,Director of Corporate Services and Transformation,Balance Sheet,Long Term Assets
http://statistics.data.gov.uk/id/local-authority/29UN,Thanet District Council,20/11/2012,326072,450.73,Southern Paper,SPA002,Director of Corporate Services and Transformation,Revenue,Supplies And Services
http://statistics.data.gov.uk/id/local-authority/29UN,Thanet District Council,20/11/2012,326087,5412.57,Southern Water,SWA001,Director of Operational Services,Revenue,Premises Related Expenditure
http://statistics.data.gov.uk/id/local-authority/29UN,Thanet District Council,20/11/2012,325191,24618.46,Swale Heating Ltd,SWA006,Director of Corporate Services and Transformation,Balance Sheet,Current Assets
http://statistics.data.gov.uk/id/local-authority/29UN,Thanet District Council,20/11/2012,326226,2360.00,Swale Heating Ltd,SWA006,Director of Corporate Services and Transformation,Balance Sheet,Current Assets
http://statistics.data.gov.uk/id/local-authority/29UN,Thanet District Council,20/11/2012,326237,1650.00,Swale Heating Ltd,SWA006,Director of Corporate Services and Transformation,Balance Sheet,Current Assets
http://statistics.data.gov.uk/id/local-authority/29UN,Thanet District Council,20/11/2012,326238,2609.44,Swale Heating Ltd,SWA006,Director of Corporate Services and Transformation,Balance Sheet,Current Assets
http://statistics.data.gov.uk/id/local-authority/29UN,Thanet District Council,20/11/2012,325176,2323.00,Sykes Construction,SYK002,Director of Corporate Services and Transformation,Balance Sheet,Long Term Assets
http://statistics.data.gov.uk/id/local-authority/29UN,Thanet District Council,20/11/2012,326240,495.38,T H Motors (Dover) Ltd,THM001,Director of Operational Services,Revenue,Transport Related Expenditure
http://statistics.data.gov.uk/id/local-authority/29UN,Thanet District Council,20/11/2012,326247,15000.00,The Dreamland Trust,DRE003,Director of Corporate Services and Transformation,Balance Sheet,Long Term Assets
http://statistics.data.gov.uk/id/local-authority/29UN,Thanet District Council,20/11/2012,325553,2045.83,The Glenwood Hotel,GLE007,Director of Community Services ,Revenue,Supplies And Services
http://statistics.data.gov.uk/id/local-authority/29UN,Thanet District Council,20/11/2012,326236,45065.47,The Ramsgate Society,RAM003,Director of Corporate Services and Transformation,Balance Sheet,Long Term Assets
http://statistics.data.gov.uk/id/local-authority/29UN,Thanet District Council,20/11/2012,326073,3465.00,The University Of Greenwich,UNI011,Director of Corporate Services and Transformation,Revenue,Supplies And Services
http://statistics.data.gov.uk/id/local-authority/29UN,Thanet District Council,20/11/2012,325872,641.14,Viridor Waste Management Ltd,VIR003,Director of Operational Services,Revenue,Supplies And Services
http://statistics.data.gov.uk/id/local-authority/29UN,Thanet District Council,20/11/2012,324778,480.90,Wasteparts Uk Ltd,WAS006,Director of Operational Services,Revenue,Transport Related Expenditure
http://statistics.data.gov.uk/id/local-authority/29UN,Thanet District Council,20/11/2012,325229,738.79,Wasteparts Uk Ltd,WAS006,Director of Operational Services,Revenue,Transport Related Expenditure
http://statistics.data.gov.uk/id/local-authority/29UN,Thanet District Council,21/11/2012,326434,456.92,Viridor Waste Management Ltd,VIR003,Director of Operational Services,Revenue,Third Party Payments
http://statistics.data.gov.uk/id/local-authority/29UN,Thanet District Council,26/11/2012,N/A,520.20,1st Choice Minimix,N/A,Director of Operational Services,Revenue,Premises Related Expenditure
http://statistics.data.gov.uk/id/local-authority/29UN,Thanet District Council,26/11/2012,N/A,585.60,1st Choice Minimix,N/A,Director of Operational Services,Revenue,Premises Related Expenditure
http://statistics.data.gov.uk/id/local-authority/29UN,Thanet District Council,26/11/2012,N/A,696.00,HM Courts Service,N/A,East Kent Shared Services,Revenue,Supplies And Services
http://statistics.data.gov.uk/id/local-authority/29UN,Thanet District Council,26/11/2012,N/A,1920.00,HM Courts Service,N/A,East Kent Shared Services,Revenue,Supplies And Services
http://statistics.data.gov.uk/id/local-authority/29UN,Thanet District Council,26/11/2012,N/A,822.00,HM Courts Service,N/A,East Kent Shared Services,Revenue,Supplies And Services
http://statistics.data.gov.uk/id/local-authority/29UN,Thanet District Council,26/11/2012,N/A,2595.00,Reed Learning,N/A,East Kent Shared Services,Revenue,Supplies And Services
http://statistics.data.gov.uk/id/local-authority/29UN,Thanet District Council,26/11/2012,N/A,1000.00,Smiths Court Hotel,N/A,Director of Community Services ,Revenue,Supplies And Services
http://statistics.data.gov.uk/id/local-authority/29UN,Thanet District Council,26/11/2012,N/A,2911.00,Southern Office Furniture Ltd,N/A,Director of Operational Services,Revenue,Supplies And Services
http://statistics.data.gov.uk/id/local-authority/29UN,Thanet District Council,27/11/2012,325805,2166.00,A R Twigg & Son Ltd,TWI001,Director of Corporate Services and Transformation,Balance Sheet,Long Term Assets
http://statistics.data.gov.uk/id/local-authority/29UN,Thanet District Council,27/11/2012,326679,604.95,Adecco Uk Ltd,ADE005,Director of Corporate Services and Transformation,Revenue,Supplies And Services
http://statistics.data.gov.uk/id/local-authority/29UN,Thanet District Council,27/11/2012,326710,490.50,Adecco Uk Ltd,ADE005,Director of Corporate Services and Transformation,Revenue,Supplies And Services
http://statistics.data.gov.uk/id/local-authority/29UN,Thanet District Council,27/11/2012,326638,12188.01,Adelante Software Limited,ADE002,East Kent Shared Services,Revenue,Supplies And Services
http://statistics.data.gov.uk/id/local-authority/29UN,Thanet District Council,27/11/2012,324882,484.00,All Access Ltd,ALL031,Director of Corporate Services and Transformation,Balance Sheet,Current Assets
http://statistics.data.gov.uk/id/local-authority/29UN,Thanet District Council,27/11/2012,326196,1275.00,Amber Driver Training,AMB004,Director of Operational Services,Revenue,Supplies And Services
http://statistics.data.gov.uk/id/local-authority/29UN,Thanet District Council,27/11/2012,326491,680.00,Ashdown Supplies,ASH009,Director of Operational Services,Revenue,Supplies And Services
http://statistics.data.gov.uk/id/local-authority/29UN,Thanet District Council,27/11/2012,326583,1150.00,Audit Commission,AUD001,Director of Corporate Services and Transformation,Revenue,Supplies And Services
http://statistics.data.gov.uk/id/local-authority/29UN,Thanet District Council,27/11/2012,326779,3250.00,Beetroot Design,BEE008,Director of Community Services ,Revenue,Supplies And Services
http://statistics.data.gov.uk/id/local-authority/29UN,Thanet District Council,27/11/2012,325763,1005.00,Blackburns Funeral Service,BLA002,Director of Corporate Services and Transformation,Revenue,Supplies And Services
http://statistics.data.gov.uk/id/local-authority/29UN,Thanet District Council,27/11/2012,326120,1117.53,Channel Commercials Plc,CCO001,Director of Operational Services,Revenue,Transport Related Expenditure
http://statistics.data.gov.uk/id/local-authority/29UN,Thanet District Council,27/11/2012,325849,448.70,Cobalt Telephone Technologies Ltd,COB002,Director of Operational Services,Revenue,Supplies And Services
http://statistics.data.gov.uk/id/local-authority/29UN,Thanet District Council,27/11/2012,326182,1850.00,Dg Consultancy Ltd,DGC002,Director of Corporate Services and Transformation,Revenue,Supplies And Services
http://statistics.data.gov.uk/id/local-authority/29UN,Thanet District Council,27/11/2012,326451,24793.00,Dover District Council,DOV001,Director of Corporate Services and Transformation,Revenue,Supplies And Services
http://statistics.data.gov.uk/id/local-authority/29UN,Thanet District Council,27/11/2012,325595,1075.00,Dr D E F Tumath,TUM001,Director of Operational Services,Revenue,Supplies And Services
http://statistics.data.gov.uk/id/local-authority/29UN,Thanet District Council,27/11/2012,325598,1475.00,Dr R K Chhabra,CHH001,Director of Operational Services,Revenue,Supplies And Services
http://statistics.data.gov.uk/id/local-authority/29UN,Thanet District Council,27/11/2012,326440,488.15,Edf Energy 1 Ltd,SEE012,Director of Operational Services,Revenue,Premises Related Expenditure
http://statistics.data.gov.uk/id/local-authority/29UN,Thanet District Council,27/11/2012,326526,535.25,Edf Energy 1 Ltd,SEE012,Director of Operational Services,Revenue,Premises Related Expenditure
http://statistics.data.gov.uk/id/local-authority/29UN,Thanet District Council,27/11/2012,326529,752.83,Edf Energy 1 Ltd,SEE012,Director of Operational Services,Revenue,Premises Related Expenditure
http://statistics.data.gov.uk/id/local-authority/29UN,Thanet District Council,27/11/2012,326535,6000.00,Eversheds Llp,EVE007,Director of Community Services ,Revenue,Supplies And Services
http://statistics.data.gov.uk/id/local-authority/29UN,Thanet District Council,27/11/2012,326641,753.13,Family Mosaic Housing,FAM001,Director of Corporate Services and Transformation,Balance Sheet,Long Term Assets
http://statistics.data.gov.uk/id/local-authority/29UN,Thanet District Council,27/11/2012,326645,880.24,Family Mosaic Housing,FAM001,Director of Corporate Services and Transformation,Balance Sheet,Long Term Assets
http://statistics.data.gov.uk/id/local-authority/29UN,Thanet District Council,27/11/2012,326654,856.05,Family Mosaic Housing,FAM001,Director of Corporate Services and Transformation,Balance Sheet,Long Term Assets
http://statistics.data.gov.uk/id/local-authority/29UN,Thanet District Council,27/11/2012,326656,786.67,Family Mosaic Housing,FAM001,Director of Corporate Services and Transformation,Balance Sheet,Long Term Assets
http://statistics.data.gov.uk/id/local-authority/29UN,Thanet District Council,27/11/2012,325858,1026.00,Frandham Boarding Kennels,FRA010,Director of Corporate Services and Transformation,Revenue,Supplies And Services
http://statistics.data.gov.uk/id/local-authority/29UN,Thanet District Council,27/11/2012,325860,1995.50,Frandham Boarding Kennels,FRA010,Director of Corporate Services and Transformation,Revenue,Supplies And Services
http://statistics.data.gov.uk/id/local-authority/29UN,Thanet District Council,27/11/2012,325861,851.50,Frandham Boarding Kennels,FRA010,Director of Corporate Services and Transformation,Revenue,Supplies And Services
http://statistics.data.gov.uk/id/local-authority/29UN,Thanet District Council,27/11/2012,324757,210.00,Gee Brown,BRO035,Director of Corporate Services and Transformation,Revenue,Supplies And Services
http://statistics.data.gov.uk/id/local-authority/29UN,Thanet District Council,27/11/2012,324763,105.00,Gee Brown,BRO035,Director of Corporate Services and Transformation,Revenue,Supplies And Services
http://statistics.data.gov.uk/id/local-authority/29UN,Thanet District Council,27/11/2012,324764,630.00,Gee Brown,BRO035,Director of Corporate Services and Transformation,Revenue,Supplies And Services
http://statistics.data.gov.uk/id/local-authority/29UN,Thanet District Council,27/11/2012,324765,140.00,Gee Brown,BRO035,Director of Corporate Services and Transformation,Revenue,Supplies And Services
http://statistics.data.gov.uk/id/local-authority/29UN,Thanet District Council,27/11/2012,326239,175.00,Gee Brown,BRO035,Director of Corporate Services and Transformation,Revenue,Supplies And Services
http://statistics.data.gov.uk/id/local-authority/29UN,Thanet District Council,27/11/2012,326123,5875.40,Glasdon Uk Ltd,GLA001,Director of Operational Services,Revenue,Supplies And Services
http://statistics.data.gov.uk/id/local-authority/29UN,Thanet District Council,27/11/2012,326663,450.00,Graham Ford Chartered Surveyors,FOR010,Director of Community Services ,Revenue,Supplies And Services
http://statistics.data.gov.uk/id/local-authority/29UN,Thanet District Council,27/11/2012,326781,1924.66,Holbrook Revell Electrical Ltd,HOL015,Director of Operational Services,Revenue,Supplies And Services
http://statistics.data.gov.uk/id/local-authority/29UN,Thanet District Council,27/11/2012,325518,5008.87,Hr Go Recruitment Ltd,HRG002,Director of Operational Services,Revenue,Employees
http://statistics.data.gov.uk/id/local-authority/29UN,Thanet District Council,27/11/2012,326108,444.00,Hr Go Recruitment Ltd,HRG002,Director of Operational Services,Revenue,Employees
http://statistics.data.gov.uk/id/local-authority/29UN,Thanet District Council,27/11/2012,326110,4380.78,Hr Go Recruitment Ltd,HRG002,Director of Operational Services,Revenue,Employees
http://statistics.data.gov.uk/id/local-authority/29UN,Thanet District Council,27/11/2012,326539,444.00,Hr Go Recruitment Ltd,HRG002,Director of Operational Services,Revenue,Employees
http://statistics.data.gov.uk/id/local-authority/29UN,Thanet District Council,27/11/2012,326609,5118.62,Hr Go Recruitment Ltd,HRG002,Director of Operational Services,Revenue,Employees
http://statistics.data.gov.uk/id/local-authority/29UN,Thanet District Council,27/11/2012,326610,3484.90,Hr Go Recruitment Ltd,HRG002,Director of Operational Services,Revenue,Employees
http://statistics.data.gov.uk/id/local-authority/29UN,Thanet District Council,27/11/2012,326177,450.00,Hydraulic Hose Replacement Servs Ltd,HYD014,Director of Operational Services,Revenue,Transport Related Expenditure
http://statistics.data.gov.uk/id/local-authority/29UN,Thanet District Council,27/11/2012,326540,418.65,Insight Direct (Uk) Ltd,INS013,East Kent Shared Services,Revenue,Supplies And Services
http://statistics.data.gov.uk/id/local-authority/29UN,Thanet District Council,27/11/2012,326541,718.18,Insight Direct (Uk) Ltd,INS013,Director of Corporate Services and Transformation,Revenue,Supplies And Services
http://statistics.data.gov.uk/id/local-authority/29UN,Thanet District Council,27/11/2012,326083,617.28,Jewson Ltd,JEW001,Director of Operational Services,Revenue,Supplies And Services
http://statistics.data.gov.uk/id/local-authority/29UN,Thanet District Council,27/11/2012,326649,860.70,John Gale,GAL001,Director of Corporate Services and Transformation,Balance Sheet,Long Term Assets
http://statistics.data.gov.uk/id/local-authority/29UN,Thanet District Council,27/11/2012,326651,793.56,John Gale,GAL001,Director of Corporate Services and Transformation,Balance Sheet,Long Term Assets
http://statistics.data.gov.uk/id/local-authority/29UN,Thanet District Council,27/11/2012,326131,650.00,Jump It Recruitment Solutions Ltd,JUM001,East Kent Shared Services,Revenue,Employees
http://statistics.data.gov.uk/id/local-authority/29UN,Thanet District Council,27/11/2012,326591,650.00,Jump It Recruitment Solutions Ltd,JUM001,East Kent Shared Services,Revenue,Employees
http://statistics.data.gov.uk/id/local-authority/29UN,Thanet District Council,27/11/2012,326602,1800.00,Jump It Recruitment Solutions Ltd,JUM001,East Kent Shared Services,Revenue,Employees
http://statistics.data.gov.uk/id/local-authority/29UN,Thanet District Council,27/11/2012,326171,795.00,Keith Tait,TAI001,Director of Operational Services,Revenue,Supplies And Services
http://statistics.data.gov.uk/id/local-authority/29UN,Thanet District Council,27/11/2012,326192,680.00,Keith Tait,TAI001,Director of Operational Services,Revenue,Premises Related Expenditure
http://statistics.data.gov.uk/id/local-authority/29UN,Thanet District Council,27/11/2012,326194,845.00,Keith Tait,TAI001,Director of Operational Services,Revenue,Premises Related Expenditure
http://statistics.data.gov.uk/id/local-authority/29UN,Thanet District Council,27/11/2012,326605,1750.00,Kent County Council,KCC002,East Kent Shared Services,Revenue,Supplies And Services
http://statistics.data.gov.uk/id/local-authority/29UN,Thanet District Council,27/11/2012,326678,5000.00,Kent County Council,KCC002,Director of Community Services ,Revenue,Supplies And Services
http://statistics.data.gov.uk/id/local-authority/29UN,Thanet District Council,27/11/2012,326117,524.88,Kent County Council (Kcs),KCC003,Director of Operational Services,Revenue,Premises Related Expenditure
http://statistics.data.gov.uk/id/local-authority/29UN,Thanet District Council,27/11/2012,326642,5230.05,Kings Home Improvements,KIN023,Director of Corporate Services and Transformation,Balance Sheet,Long Term Assets
http://statistics.data.gov.uk/id/local-authority/29UN,Thanet District Council,27/11/2012,326198,639.75,Lcp Engineering Co Ltd,LCP001,Director of Operational Services,Revenue,Premises Related Expenditure
http://statistics.data.gov.uk/id/local-authority/29UN,Thanet District Council,27/11/2012,325637,1264.00,Lednor Construction Limited,LED003,Director of Corporate Services and Transformation,Balance Sheet,Current Assets
http://statistics.data.gov.uk/id/local-authority/29UN,Thanet District Council,27/11/2012,326533,2422.10,Level 3 Communications (Uk) Ltd,LEV005,Director of Corporate Services and Transformation,Balance Sheet,Current Assets
http://statistics.data.gov.uk/id/local-authority/29UN,Thanet District Council,27/11/2012,326494,79043.08,Liberata Uk Ltd,LIB001,Director of Corporate Services and Transformation,Revenue,Supplies And Services
http://statistics.data.gov.uk/id/local-authority/29UN,Thanet District Council,27/11/2012,326124,550.00,M D Electrics,MDE001,Director of Operational Services,Revenue,Premises Related Expenditure
http://statistics.data.gov.uk/id/local-authority/29UN,Thanet District Council,27/11/2012,326506,1919.00,Matrix Communications Ltd,MAT004,Director of Operational Services,Revenue,Supplies And Services
http://statistics.data.gov.uk/id/local-authority/29UN,Thanet District Council,27/11/2012,326095,1950.00,Maxwells Horticultural Supplies Ltd,MAX005,Director of Operational Services,Revenue,Supplies And Services
http://statistics.data.gov.uk/id/local-authority/29UN,Thanet District Council,27/11/2012,324877,3845.32,Mears Ltd,MEA003,Director of Corporate Services and Transformation,Balance Sheet,Current Assets
http://statistics.data.gov.uk/id/local-authority/29UN,Thanet District Council,27/11/2012,325177,101089.84,Mears Ltd,MEA003,Director of Community Services ,Revenue,Premises Related Expenditure
http://statistics.data.gov.uk/id/local-authority/29UN,Thanet District Council,27/11/2012,326597,1159.00,Michael Page Finance,PAG008,Director of Corporate Services and Transformation,Revenue,Supplies And Services
http://statistics.data.gov.uk/id/local-authority/29UN,Thanet District Council,27/11/2012,326191,905.10,Morgan Jones Ltd,MOR001,East Kent Shared Services,Revenue,Employees
http://statistics.data.gov.uk/id/local-authority/29UN,Thanet District Council,27/11/2012,325663,598.00,Mr Luke Stephen Michael Farmer,FAR005,Director of Community Services ,Revenue,Supplies And Services
http://statistics.data.gov.uk/id/local-authority/29UN,Thanet District Council,27/11/2012,326652,6613.00,Northwood Builders,NOR002,Director of Corporate Services and Transformation,Balance Sheet,Long Term Assets
http://statistics.data.gov.uk/id/local-authority/29UN,Thanet District Council,27/11/2012,326445,766.36,Osborne Richardson,OSB002,Director of Corporate Services and Transformation,Revenue,Supplies And Services
http://statistics.data.gov.uk/id/local-authority/29UN,Thanet District Council,27/11/2012,326446,583.68,Osborne Richardson,OSB002,Director of Corporate Services and Transformation,Revenue,Supplies And Services
http://statistics.data.gov.uk/id/local-authority/29UN,Thanet District Council,27/11/2012,326639,545.00,Ovaltech Ltd,OVA001,East Kent Shared Services,Revenue,Supplies And Services
http://statistics.data.gov.uk/id/local-authority/29UN,Thanet District Council,27/11/2012,326660,1575.00,P Houghton,HOU005,Director of Corporate Services and Transformation,Revenue,Supplies And Services
http://statistics.data.gov.uk/id/local-authority/29UN,Thanet District Council,27/11/2012,317098,3515.50,Pinsent Masons,PIN007,Director of Community Services ,Revenue,Supplies And Services
http://statistics.data.gov.uk/id/local-authority/29UN,Thanet District Council,27/11/2012,326655,4422.91,Premiere Projects Limited,PRE022,Director of Corporate Services and Transformation,Balance Sheet,Long Term Assets
http://statistics.data.gov.uk/id/local-authority/29UN,Thanet District Council,27/11/2012,326202,560.00,R Cannon,CAN007,Director of Operational Services,Revenue,Supplies And Services
http://statistics.data.gov.uk/id/local-authority/29UN,Thanet District Council,27/11/2012,326661,525.00,R Cannon,CAN007,Director of Operational Services,Revenue,Supplies And Services
http://statistics.data.gov.uk/id/local-authority/29UN,Thanet District Council,27/11/2012,325867,1310.00,Rackspace Managed Hosting Ltd,RAC004,East Kent Shared Services,Revenue,Supplies And Services
http://statistics.data.gov.uk/id/local-authority/29UN,Thanet District Council,27/11/2012,325582,8511.49,Ramsay Project Management Ltd,RAM037,Director of Corporate Services and Transformation,Balance Sheet,Long Term Assets
http://statistics.data.gov.uk/id/local-authority/29UN,Thanet District Council,27/11/2012,326106,38941.69,Royal Mail,ROY004,Director of Corporate Services and Transformation,Revenue,Supplies And Services
http://statistics.data.gov.uk/id/local-authority/29UN,Thanet District Council,27/11/2012,326498,729.90,Royal Mail,ROY004,Director of Corporate Services and Transformation,Revenue,Supplies And Services
http://statistics.data.gov.uk/id/local-authority/29UN,Thanet District Council,27/11/2012,326556,1221.86,Royal Mail,ROY004,Director of Corporate Services and Transformation,Revenue,Supplies And Services
http://statistics.data.gov.uk/id/local-authority/29UN,Thanet District Council,27/11/2012,326576,3083.35,Royal Mail,ROY004,Director of Corporate Services and Transformation,Revenue,Supplies And Services
http://statistics.data.gov.uk/id/local-authority/29UN,Thanet District Council,27/11/2012,325807,1250.38,Santander Uk Plc,SAN019,East Kent Shared Services,Revenue,Supplies And Services
http://statistics.data.gov.uk/id/local-authority/29UN,Thanet District Council,27/11/2012,326184,720.00,Sba Ltd,SBA001,Director of Operational Services,Revenue,Supplies And Services
http://statistics.data.gov.uk/id/local-authority/29UN,Thanet District Council,27/11/2012,326647,2724.00,South East Building Company Ltd,SEB001,Director of Corporate Services and Transformation,Balance Sheet,Long Term Assets
http://statistics.data.gov.uk/id/local-authority/29UN,Thanet District Council,27/11/2012,326644,6085.00,South East Wetrooms Limited,SEW002,Director of Corporate Services and Transformation,Balance Sheet,Long Term Assets
http://statistics.data.gov.uk/id/local-authority/29UN,Thanet District Council,27/11/2012,326431,927.44,Sparshatts Of Kent Ltd,SPA008,Director of Operational Services,Revenue,Transport Related Expenditure
http://statistics.data.gov.uk/id/local-authority/29UN,Thanet District Council,27/11/2012,325579,623.00,Streetmaster (S.Wales) Limited,STR001,Director of Operational Services,Revenue,Supplies And Services
http://statistics.data.gov.uk/id/local-authority/29UN,Thanet District Council,27/11/2012,326127,666.00,Streetmaster (S.Wales) Limited,STR001,Director of Operational Services,Revenue,Supplies And Services
http://statistics.data.gov.uk/id/local-authority/29UN,Thanet District Council,27/11/2012,325142,720.56,Supplies Team,SUP001,Director of Corporate Services and Transformation,Revenue,Supplies And Services
http://statistics.data.gov.uk/id/local-authority/29UN,Thanet District Council,27/11/2012,326493,326.74,Supplies Team,SUP001,Director of Community Services ,Revenue,Supplies And Services
http://statistics.data.gov.uk/id/local-authority/29UN,Thanet District Council,27/11/2012,326493,7.56,Supplies Team,SUP001,Director of Operational Services,Revenue,Supplies And Services
http://statistics.data.gov.uk/id/local-authority/29UN,Thanet District Council,27/11/2012,326493,496.75,Supplies Team,SUP001,East Kent Shared Services,Revenue,Supplies And Services
http://statistics.data.gov.uk/id/local-authority/29UN,Thanet District Council,27/11/2012,326481,2370.00,T Nielsen & Company Ltd,NIE001,Director of Operational Services,Revenue,Premises Related Expenditure
http://statistics.data.gov.uk/id/local-authority/29UN,Thanet District Council,27/11/2012,325804,630.00,Thanet Leisureforce Ltd,TLF001,Director of Community Services ,Revenue,Supplies And Services
http://statistics.data.gov.uk/id/local-authority/29UN,Thanet District Council,27/11/2012,326084,2125.00,The Glenwood Hotel,GLE007,Director of Community Services ,Revenue,Supplies And Services
http://statistics.data.gov.uk/id/local-authority/29UN,Thanet District Council,27/11/2012,326121,1000.00,The Kent Peoples Trust,TKP001,Director of Community Services ,Revenue,Supplies And Services
http://statistics.data.gov.uk/id/local-authority/29UN,Thanet District Council,27/11/2012,325866,1452.35,The Learning Quest Ltd,LEA024,East Kent Shared Services,Revenue,Employees
http://statistics.data.gov.uk/id/local-authority/29UN,Thanet District Council,27/11/2012,326653,5917.00,Trueden Disability Care Ltd,TRU011,Director of Corporate Services and Transformation,Balance Sheet,Long Term Assets
http://statistics.data.gov.uk/id/local-authority/29UN,Thanet District Council,27/11/2012,325788,507.24,Veolia Es (Uk) Ltd,VEO001,Director of Operational Services,Revenue,Premises Related Expenditure
http://statistics.data.gov.uk/id/local-authority/29UN,Thanet District Council,27/11/2012,326076,3938.00,Victoria Flooring Ltd,VIC001,Director of Operational Services,Revenue,Premises Related Expenditure
http://statistics.data.gov.uk/id/local-authority/29UN,Thanet District Council,27/11/2012,325870,496.80,Viridor Waste Management Ltd,VIR003,Director of Operational Services,Revenue,Supplies And Services
http://statistics.data.gov.uk/id/local-authority/29UN,Thanet District Council,27/11/2012,326846,5685.92,Vodafone Limited (Corporate),VOD001,Director of Corporate Services and Transformation,Balance Sheet,Current Assets
http://statistics.data.gov.uk/id/local-authority/29UN,Thanet District Council,27/11/2012,325502,640.00,W Brazil & Bros,BRA001,Director of Operational Services,Revenue,Premises Related Expenditure
http://statistics.data.gov.uk/id/local-authority/29UN,Thanet District Council,27/11/2012,325503,655.00,W Brazil & Bros,BRA001,Director of Operational Services,Revenue,Premises Related Expenditure
http://statistics.data.gov.uk/id/local-authority/29UN,Thanet District Council,27/11/2012,325765,750.00,W Brazil & Bros,BRA001,Director of Operational Services,Revenue,Supplies And Services
http://statistics.data.gov.uk/id/local-authority/29UN,Thanet District Council,27/11/2012,326546,577.61,W G Burbridge,BUR016,Director of Operational Services,Revenue,Premises Related Expenditure
http://statistics.data.gov.uk/id/local-authority/29UN,Thanet District Council,27/11/2012,326153,10151.10,Waste Consulting Llp,WAS005,Director of Operational Services,Revenue,Supplies And Services
http://statistics.data.gov.uk/id/local-authority/29UN,Thanet District Council,27/11/2012,326601,449.55,Wasteparts Uk Ltd,WAS006,Director of Operational Services,Revenue,Transport Related Expenditure
http://statistics.data.gov.uk/id/local-authority/29UN,Thanet District Council,27/11/2012,326681,657.25,Westbury Industrial Supplies Ltd,WES042,Director of Operational Services,Revenue,Supplies And Services
http://statistics.data.gov.uk/id/local-authority/29UN,Thanet District Council,28/11/2012,327066,1134.70,Co-Operative Bank Paypoint,COO018,Director of Corporate Services and Transformation,Revenue,Supplies And Services
http://statistics.data.gov.uk/id/local-authority/29UN,Thanet District Council,28/11/2012,327066,378.24,Co-Operative Bank Paypoint,COO018,Director of Community Services ,Revenue,Supplies And Services
http://statistics.data.gov.uk/id/local-authority/29UN,Thanet District Council,28/11/2012,327031,13200.49,Public Works Loan Board,PWL001,Director of Corporate Services and Transformation,Balance Sheet,Current Assets
http://statistics.data.gov.uk/id/local-authority/29UN,Thanet District Council,28/11/2012,327061,2579.94,Santander,SAN017,Director of Corporate Services and Transformation,Revenue,Supplies And Services
http://statistics.data.gov.uk/id/local-authority/29UN,Thanet District Council,28/11/2012,327061,859.98,Santander,SAN017,Director of Community Services ,Revenue,Supplies And Services
http://statistics.data.gov.uk/id/local-authority/29UN,Thanet District Council,28/11/2012,327064,804.88,Santander,SAN017,Director of Corporate Services and Transformation,Revenue,Supplies And Services
http://statistics.data.gov.uk/id/local-authority/29UN,Thanet District Council,28/11/2012,327048,-440735.00,Secretary Of State,SEC003,Director of Corporate Services and Transformation,Revenue,Supplies And Services
http://statistics.data.gov.uk/id/local-authority/29UN,Thanet District Council,28/11/2012,327048,1451821.00,Secretary Of State,SEC003,Director of Corporate Services and Transformation,Balance Sheet,Current Liabilities
http://statistics.data.gov.uk/id/local-authority/29UN,Thanet District Council,28/11/2012,327051,-440736.00,Secretary Of State,SEC003,Director of Corporate Services and Transformation,Revenue,Supplies And Services
http://statistics.data.gov.uk/id/local-authority/29UN,Thanet District Council,28/11/2012,327051,1451820.00,Secretary Of State,SEC003,Director of Corporate Services and Transformation,Balance Sheet,Current Liabilities
http://statistics.data.gov.uk/id/local-authority/29UN,Thanet District Council,28/11/2012,327070,1532.45,Worldpay Ltd,WOR008,Director of Corporate Services and Transformation,Revenue,Supplies And Services
http://statistics.data.gov.uk/id/local-authority/29UN,Thanet District Council,28/11/2012,327077,1138.35,Worldpay Ltd,WOR008,Director of Corporate Services and Transformation,Revenue,Supplies And Services
http://statistics.data.gov.uk/id/local-authority/29UN,Thanet District Council,30/11/2012,325797,1320.00,Bridge Security Cctv Ltd,BRI039,Director of Community Services ,Revenue,Supplies And Services
http://statistics.data.gov.uk/id/local-authority/29UN,Thanet District Council,30/11/2012,325798,1364.00,Bridge Security Cctv Ltd,BRI039,Director of Community Services ,Revenue,Supplies And Services
http://statistics.data.gov.uk/id/local-authority/29UN,Thanet District Council,30/11/2012,325194,14376.00,Mr Philip Woolfe,WOO030,Director of Operational Services,Revenue,Supplies And Services
http://statistics.data.gov.uk/id/local-authority/29UN,Thanet District Council,30/11/2012,326813,28500.00,N E Murray Marine Contractors,MUR001,Director of Operational Services,Revenue,Third Party Payments
http://statistics.data.gov.uk/id/local-authority/29UN,Thanet District Council,30/11/2012,327229,2156.96,Nat West Bank,NWE001,Director of Corporate Services and Transformation,Balance Sheet,Long Term Assets
http://statistics.data.gov.uk/id/local-authority/29UN,Thanet District Council,30/11/2012,327157,57100.00,Royal National Lifeboat Institution,RNL002,Director of Community Services ,Revenue,Supplies And Services
http://statistics.data.gov.uk/id/local-authority/29UN,Thanet District Council,30/11/2012,327158,57100.00,Royal National Lifeboat Institution,RNL002,Director of Community Services ,Revenue,Supplies And Services
http://statistics.data.gov.uk/id/local-authority/29UN,Thanet District Council,30/11/2012,327230,40000.00,Thorn Drury & Searles Client Acc,THO044,Director of Corporate Services and Transformation,Balance Sheet,Long Term Assets
http://statistics.data.gov.uk/id/local-authority/29UN,Thanet District Council,30/11/2012,327230,387.00,Thorn Drury & Searles Client Acc,THO044,Director of Community Services ,Revenue,Supplies And Services
